bitfinex/quotes_BTCUSD_20251212
["timestamp","ask_amount","ask_price","bid_price","bid_amount"]
[1765552499044,0.24460086,92051.0,92050.0,0.00031666]
[1765552499583,0.24560086,92051.0,92050.0,0.00031666]
[1765552500052,0.32492141,92051.0,92050.0,0.00031666]
[1765552500253,0.21827086,92051.0,92050.0,0.00031666]
[1765552500687,0.21927086,92051.0,92050.0,0.00031666]
[1765552501187,0.25795086,92051.0,92050.0,0.00031666]
[1765552501469,0.21927086,92051.0,92050.0,0.00031666]
[1765552501690,0.25795086,92051.0,92050.0,0.00031666]
[1765552501917,0.72281611,92051.0,92050.0,0.00031666]
[1765552502122,0.21731807,92031.0,92030.0,0.0002]
[1765552502263,0.21731807,92031.0,92030.0,0.00031683]
[1765552502264,0.26192807,92031.0,92030.0,0.00031683]
[1765552502673,0.28474807,92031.0,92030.0,0.00031683]
[1765552502920,0.38490894,92031.0,92030.0,0.00031683]
[1765552503959,0.23459807,92031.0,92030.0,0.00031683]
[1765552504181,0.32329646,92031.0,92030.0,0.00031683]
[1765552504398,0.36649646,92031.0,92030.0,0.00031683]
[1765552504599,0.36749646,92031.0,92030.0,0.00031683]
[1765552505012,0.36849646,92031.0,92030.0,0.00031683]
[1765552505470,0.01086566,92033.0,92030.0,0.00031683]
[1765552505688,0.01928,92031.0,92030.0,0.00031683]
[1765552505903,0.002,92031.0,92030.0,0.0019297]
[1765552506344,0.01086531,92036.0,92031.0,0.0108659]
[1765552506549,0.01086413,92046.0,92035.0,0.01086543]
[1765552506753,0.01086507,92038.0,92035.0,0.0124783]
[1765552506968,0.0108646,92042.0,92038.0,0.01086507]
[1765552507176,0.01086472,92041.0,92038.0,0.01086507]
[1765552507677,0.01086484,92040.0,92037.0,0.01086519]
[1765552507842,0.01086484,92040.0,92036.0,0.01086531]
[1765552508055,0.0422505,92040.0,92036.0,0.01086531]
[1765552508254,0.03138566,92040.0,92037.0,0.01086519]
[1765552508450,0.01086472,92041.0,92038.0,0.01086507]
[1765552508654,0.001,92041.0,92038.0,0.22816661]
[1765552508796,0.01086472,92041.0,92038.0,0.01086507]
[1765552509208,0.02173191,92043.0,92040.0,0.01086484]
[1765552509427,0.02173191,92043.0,92041.0,0.21729446]
[1765552509642,0.02173191,92044.0,92039.0,0.01086495]
[1765552509838,0.01086495,92039.0,92035.0,0.00161287]
[1765552510081,0.01086495,92039.0,92010.0,0.69091355]
[1765552510082,0.22817901,92033.0,92021.0,0.22820725]
[1765552510287,0.22817901,92033.0,92025.0,0.01086661]
[1765552510704,0.22817901,92033.0,92028.0,0.01086625]
[1765552510904,0.01086519,92037.0,92031.0,0.0108659]
[1765552510905,0.22817175,92036.0,92031.0,0.0108659]
[1765552511194,0.01086531,92036.0,92032.0,0.01086578]
[1765552511417,0.01086543,92035.0,92031.0,0.0108659]
[1765552511636,0.01086531,92036.0,92032.0,0.22818149]
[1765552511845,0.02173191,92037.0,92036.0,0.01086531]
[1765552512042,0.23903605,92037.0,92032.0,0.01086578]
[1765552512245,0.01728,92038.0,92035.0,0.01086543]
[1765552512370,0.02173191,92037.0,92035.0,0.01086543]
[1765552512582,0.01086366,92050.0,92046.0,0.01086413]
[1765552512784,0.0432,92056.0,92035.0,0.0124783]
[1765552512785,0.21726377,92054.0,92050.0,0.01086366]
[1765552512996,0.06088146,92055.0,92052.0,0.01086342]
[1765552512997,0.2907,92055.0,92052.0,0.01086342]
[1765552513221,0.01086307,92055.0,92052.0,0.01086342]
[1765552513434,0.01086307,92055.0,92047.0,0.21727925]
[1765552513435,0.01086389,92048.0,92040.0,0.21729682]
[1765552513646,0.01086543,92035.0,92030.0,0.01118285]
[1765552513855,0.21731621,92032.0,92030.0,0.00031683]
[1765552514057,0.01086495,92039.0,92034.0,0.01086554]
[1765552514257,0.01086531,92036.0,92033.0,0.01086566]
[1765552514458,0.02173191,92035.0,92032.0,0.01086578]
[1765552514670,0.02173191,92035.0,92033.0,0.21731335]
[1765552514875,0.22817921,92033.0,92030.0,0.0019297]
[1765552515134,0.23317807,92031.0,92030.0,0.00031683]
[1765552515350,0.27137921,92033.0,92030.0,0.00031683]
[1765552515571,0.69099829,92050.0,92031.0,0.21731807]
[1765552515572,0.01086484,92040.0,92031.0,0.21731807]
[1765552515789,0.2173138,92033.0,92031.0,0.00161287]
[1765552515999,0.04906191,92032.0,92030.0,0.00031683]
[1765552516203,0.02173191,92032.0,92030.0,0.00031683]
[1765552516423,0.01086531,92036.0,92030.0,0.00031683]
[1765552516424,0.01086436,92044.0,92041.0,0.01086472]
[1765552516633,0.30156436,92044.0,92041.0,0.01086472]
[1765552516843,0.01086472,92041.0,92037.0,0.01086519]
[1765552517060,0.0108646,92042.0,92038.0,0.01086507]
[1765552517260,0.01086507,92038.0,92033.0,0.22917779]
[1765552517479,0.01086484,92040.0,92036.0,0.01086531]
[1765552517692,0.03259686,92039.0,92034.0,0.01086554]
[1765552517893,0.01086519,92037.0,92030.0,0.01279572]
[1765552518109,0.01086519,92037.0,92030.0,0.0019297]
[1765552518110,0.01086566,92033.0,92030.0,0.0019297]
[1765552518324,0.24991302,92033.0,92030.0,0.0019297]
[1765552518534,0.23904991,92032.0,92030.0,0.0019297]
[1765552518805,0.217318,92032.0,92030.0,0.0019297]
[1765552519080,0.01086495,92039.0,92034.0,0.01086554]
[1765552519322,0.22814983,92045.0,92040.0,0.01086484]
[1765552519492,0.22814983,92045.0,92037.0,0.2173018]
[1765552519493,0.01086472,92041.0,92037.0,0.01086519]
[1765552519884,0.01086519,92037.0,92034.0,0.01086554]
[1765552520110,0.03259675,92040.0,92036.0,0.01086531]
[1765552520230,0.03259675,92040.0,92036.0,0.22816943]
[1765552520432,0.01086495,92039.0,92034.0,0.01086554]
[1765552520672,0.21731803,92032.0,92030.0,0.0019297]
[1765552521080,0.01086566,92033.0,92030.0,0.0019297]
[1765552521487,0.01086554,92034.0,92031.0,0.0108659]
[1765552521692,0.01086495,92039.0,92036.0,0.01086531]
[1765552521862,0.01086495,92039.0,92033.0,0.01086566]
[1765552521863,0.01086519,92037.0,92034.0,0.01086554]
[1765552522344,0.01086484,92040.0,92034.0,0.01086554]
[1765552522345,0.01086484,92040.0,92035.0,0.01086543]
[1765552522547,0.01086495,92039.0,92035.0,0.0124783]
[1765552522781,0.03259686,92039.0,92035.0,0.0124783]
[1765552522998,0.03259686,92039.0,92036.0,0.01086531]
[1765552522999,0.02173191,92039.0,92036.0,0.01086531]
[1765552523224,0.26047761,92049.0,92036.0,0.01086531]
[1765552523225,0.25346366,92050.0,92047.0,0.01086401]
[1765552523435,0.01086413,92046.0,92042.0,0.0108646]
[1765552523656,0.22814927,92045.0,92036.0,0.22978213]
[1765552523852,0.01086495,92039.0,92036.0,0.00161287]
[1765552524074,0.01086495,92039.0,92031.0,0.001]
[1765552524075,0.01086495,92039.0,92030.0,0.00031683]
[1765552524076,0.01086566,92033.0,92030.0,0.00031683]
[1765552524304,0.00543276,92032.0,92030.0,0.21763656]
[1765552524516,0.00543276,92032.0,92030.0,0.00031683]
[1765552524722,0.02173191,92033.0,92030.0,0.22850287]
[1765552525164,0.01533,92031.0,92030.0,0.00031683]
[1765552525365,0.02173191,92033.0,92032.0,0.21731571]
[1765552525594,0.01086531,92036.0,92033.0,0.01086566]
[1765552525797,0.01086554,92034.0,92031.0,0.0108659]
[1765552525998,0.04343535,92034.0,92030.0,0.01118285]
[1765552526205,0.23264807,92031.0,92030.0,0.00031683]
[1765552526372,0.27584807,92031.0,92030.0,0.00031683]
[1765552526575,0.29953807,92031.0,92030.0,0.00031683]
[1765552526840,0.36053807,92031.0,92030.0,0.00031683]
[1765552527037,0.21731807,92031.0,92030.0,0.00031683]
[1765552527638,0.23264807,92031.0,92030.0,0.00031683]
[1765552527781,0.21731807,92031.0,92030.0,0.00031683]
[1765552527984,0.01728,92031.0,92030.0,0.00031683]
[1765552528226,0.01086531,92036.0,92030.0,0.00031683]
[1765552528227,0.01086425,92045.0,92040.0,0.01086484]
[1765552528402,0.21728266,92046.0,92040.0,0.01086484]
[1765552528598,0.21728266,92046.0,92041.0,0.01086472]
[1765552528599,0.01086425,92045.0,92041.0,0.01086472]
[1765552529029,0.2426,92050.0,92046.0,0.21728032]
[1765552529200,0.01086401,92047.0,92043.0,0.01086448]
[1765552529401,0.22814679,92046.0,92042.0,0.0108646]
[1765552529603,0.01086413,92046.0,92043.0,0.01086448]
[1765552529807,0.07626149,92046.0,92043.0,0.01086448]
[1765552530089,0.07626149,92046.0,92042.0,0.22815651]
[1765552530090,0.08712562,92046.0,92042.0,0.0108646]
[1765552530318,0.07626149,92046.0,92043.0,0.22815422]
[1765552530523,0.01086401,92047.0,92043.0,0.01086448]
[1765552530736,0.01086377,92049.0,92044.0,0.21728738]
[1765552530934,0.01086401,92047.0,92043.0,0.01086448]
[1765552531135,0.2426,92050.0,92046.0,0.21728266]
[1765552531378,0.2426,92050.0,92047.0,0.01086401]
[1765552531601,0.2426,92050.0,92048.0,0.21727794]
[1765552531810,0.2426,92050.0,92048.0,0.21889081]
[1765552531995,0.0281433,92053.0,92049.0,0.01086377]
[1765552532172,0.02173191,92052.0,92050.0,0.22813688]
[1765552532372,0.02173191,92052.0,92048.0,0.00161287]
[1765552532373,0.03259533,92052.0,92048.0,0.00161287]
[1765552532574,0.01086366,92050.0,92046.0,0.22814679]
[1765552532911,0.01086366,92050.0,92042.0,0.21729051]
[1765552532912,0.02723,92047.0,92035.0,0.01086543]
[1765552533132,0.01086495,92039.0,92034.0,0.01086554]
[1765552533337,0.01086566,92033.0,92030.0,0.0019297]
[1765552533497,0.21731571,92032.0,92030.0,0.00031683]
[1765552534035,0.08222,92031.0,92030.0,0.00031683]
[1765552534223,0.05853,92031.0,92030.0,0.00031683]
[1765552534381,0.21731571,92032.0,92030.0,0.00031683]
[1765552534382,0.26051571,92032.0,92030.0,0.00031683]
[1765552534588,0.01086495,92039.0,92033.0,0.21731283]
[1765552534931,0.01086495,92039.0,92034.0,0.01086554]
[1765552534932,0.02814507,92038.0,92034.0,0.01086554]
[1765552535100,0.01086484,92040.0,92036.0,0.01086531]
[1765552535263,0.01086507,92038.0,92034.0,0.01086554]
[1765552535468,0.01086566,92033.0,92030.0,0.00031683]
[1765552535668,0.21731807,92031.0,92030.0,0.00031683]
[1765552535923,0.02814495,92039.0,92034.0,0.01086554]
[1765552536121,0.01086543,92035.0,92031.0,0.0108659]
[1765552536322,0.01086519,92037.0,92031.0,0.0108659]
[1765552536323,0.01086507,92038.0,92035.0,0.01086543]
[1765552536524,0.21731412,92033.0,92030.0,0.00031683]
[1765552536724,0.01086566,92033.0,92030.0,0.00031683]
[1765552537399,0.01086566,92033.0,92030.0,0.01118285]
[1765552537604,0.2281791,92033.0,92030.0,0.00031683]
[1765552537843,0.23264807,92031.0,92030.0,0.00031683]
[1765552538052,0.21731807,92031.0,92030.0,0.00031683]
[1765552538351,0.05062257,92032.0,92030.0,0.00031683]
[1765552538798,0.2713791,92033.0,92030.0,0.00031683]
[1765552539747,0.28266646,92031.0,92030.0,0.00031683]
[1765552539954,0.61656646,92031.0,92030.0,0.00031683]
[1765552540165,0.66366926,92031.0,92030.0,0.00031683]
[1765552541323,0.66566926,92031.0,92030.0,0.00031683]
[1765552541523,0.77617688,92031.0,92030.0,0.00031683]
[1765552541725,0.66566926,92031.0,92030.0,0.00031683]
[1765552542150,0.59677926,92031.0,92030.0,0.00031683]
[1765552542379,0.61433646,92031.0,92030.0,0.00031683]
[1765552542541,0.65953646,92031.0,92030.0,0.00031683]
[1765552543010,0.65953646,92031.0,92029.0,0.0003]
[1765552543011,0.65753646,92031.0,92029.0,0.0003]
[1765552543161,0.65753646,92031.0,92010.0,0.0002]
[1765552543162,0.24430595,92012.0,92010.0,0.0002]
[1765552543491,0.26158595,92012.0,92011.0,0.00034889]
[1765552543718,0.23789595,92012.0,92011.0,0.00034889]
[1765552544094,0.01086779,92015.0,92011.0,0.00034889]
[1765552544304,0.01728,92012.0,92011.0,0.00196176]
[1765552544903,0.23564295,92012.0,92011.0,0.00196176]
[1765552545103,0.21736295,92012.0,92011.0,0.00196176]
[1765552545585,0.24550615,92014.0,92011.0,0.00196176]
[1765552545715,0.001,92012.0,92011.0,0.00196176]
[1765552546349,0.01533,92012.0,92011.0,0.00196176]
[1765552546553,0.01533,92012.0,92011.0,0.00034889]
[1765552546773,0.01533,92012.0,91980.0,0.2907]
[1765552546774,0.01533,92012.0,91979.0,0.01087204]
[1765552546775,0.21738894,92001.0,91979.0,0.01087204]
[1765552546978,0.21738894,92001.0,92000.0,8.43780014]
[1765552546979,0.64581733,92001.0,92000.0,8.43780014]
[1765552547202,0.75800147,92001.0,92000.0,8.43780014]
[1765552547619,0.75800147,92001.0,92000.0,4.62117737]
[1765552547620,0.73813933,92001.0,92000.0,4.62117737]
[1765552547830,0.73813933,92001.0,92000.0,2.99172595]
[1765552547831,1.80724519,92001.0,92000.0,2.99172595]
[1765552548039,1.80724519,92001.0,91940.0,0.0002]
[1765552548040,0.0108763,91943.0,91940.0,0.0002]
[1765552548251,0.0108763,91943.0,91894.0,0.0109721]
[1765552548252,0.01087902,91920.0,91904.0,0.01088091]
[1765552548462,0.25,91940.0,91904.0,0.01088091]
[1765552548463,0.21751221,91949.0,91914.0,0.2175944]
[1765552548677,0.03872663,91982.0,91914.0,0.2175944]
[1765552548678,0.01087689,91938.0,91927.0,0.21756169]
[1765552548879,0.2907,91957.0,91927.0,0.01249106]
[1765552548880,0.01087713,91936.0,91927.0,0.01249106]
[1765552549087,0.05407677,91939.0,91928.0,0.01087807]
[1765552549088,0.01087701,91937.0,91928.0,0.01087807]
[1765552549294,0.05407677,91939.0,91928.0,0.01087807]
[1765552549295,0.0432,91939.0,91928.0,0.00161287]
[1765552549504,0.01087772,91931.0,91928.0,0.00161287]
[1765552549724,0.01087772,91931.0,91914.0,0.07104]
[1765552549725,0.01087867,91923.0,91914.0,0.07104]
[1765552549913,0.21755408,91932.0,91917.0,0.22846477]
[1765552549914,0.01087784,91930.0,91917.0,0.22846477]
[1765552550114,0.01087819,91927.0,91919.0,0.01087914]
[1765552550398,0.0108789,91921.0,91914.0,0.0835326]
[1765552550624,0.0108789,91921.0,91908.0,0.21760799]
[1765552550625,0.01087878,91922.0,91908.0,0.01088044]
[1765552550834,0.01087843,91925.0,91900.0,0.21762551]
[1765552550835,0.05408032,91909.0,91903.0,0.04835103]
[1765552551093,0.05408032,91909.0,91903.0,0.03747]
[1765552551309,0.05408032,91909.0,91894.0,0.21773153]
[1765552551310,0.26765571,91896.0,91894.0,9e-05]
[1765552551511,0.34071839,91895.0,91894.0,9e-05]
[1765552551713,0.30802,91895.0,91894.0,9e-05]
[1765552551928,0.35122,91895.0,91894.0,9e-05]
[1765552552141,0.01770852,91895.0,91894.0,9e-05]
[1765552552357,0.01770852,91895.0,91876.0,0.03747]
[1765552552358,0.01770852,91895.0,91883.0,0.0108834]
[1765552552359,0.00038852,91895.0,91883.0,0.0108834]
[1765552552571,0.00038852,91895.0,91894.0,0.27216286]
[1765552552977,0.00038852,91895.0,91894.0,0.34320286]
[1765552553197,0.00060852,91895.0,91894.0,0.34320286]
[1765552553407,0.02175212,91952.0,91900.0,0.00099999]
[1765552553622,0.01087464,91957.0,91943.0,0.0108763]
[1765552553822,0.21748878,91959.0,91938.0,0.2175369]
[1765552553823,0.010875,91954.0,91942.0,0.22840287]
[1765552554027,0.010875,91954.0,91943.0,0.0108763]
[1765552554028,0.01087535,91951.0,91943.0,0.0108763]
[1765552554239,0.01087583,91947.0,91939.0,0.01087677]
[1765552554439,0.01087547,91950.0,91944.0,0.01087618]
[1765552554634,0.01087535,91951.0,91939.0,0.00161287]
[1765552554838,0.01087535,91951.0,91943.0,0.0108763]
[1765552555055,0.01087571,91948.0,91943.0,0.0108763]
[1765552555263,0.21750022,91954.0,91939.0,0.21922366]
[1765552555264,0.01087618,91944.0,91939.0,0.00168864]
[1765552555475,0.22840615,91942.0,91939.0,7.577e-05]
[1765552555676,0.01087642,91942.0,91939.0,7.577e-05]
[1765552555851,0.0108763,91943.0,91939.0,7.577e-05]
[1765552556055,0.2175308,91941.0,91939.0,7.577e-05]
[1765552556260,0.01087642,91942.0,91939.0,7.577e-05]
[1765552556687,0.21753317,91940.0,91939.0,7.577e-05]
[1765552556868,0.0432,91940.0,91939.0,7.577e-05]
[1765552557068,0.01087642,91942.0,91939.0,7.577e-05]
[1765552557470,0.01087583,91947.0,91939.0,7.577e-05]
[1765552557668,0.01087547,91950.0,91944.0,0.01087618]
[1765552557873,0.01087547,91950.0,91940.0,0.21753317]
[1765552558078,0.22838464,91951.0,91940.0,0.21753317]
[1765552558079,0.01087594,91946.0,91940.0,0.00161287]
[1765552558301,0.2175292,91942.0,91940.0,0.00161287]
[1765552558472,0.0432,91940.0,91939.0,7.577e-05]
[1765552558893,0.09321839,91940.0,91939.0,7.577e-05]
[1765552559251,0.09321839,91940.0,91939.0,0.00216578]
[1765552559646,0.09399839,91940.0,91939.0,0.00216578]
[1765552559786,0.05079839,91940.0,91939.0,0.00216578]
[1765552560010,0.05079839,91940.0,91900.0,1.01703577]
[1765552560011,0.05079839,91940.0,91903.0,0.03747]
[1765552560012,0.01088068,91906.0,91903.0,0.03747]
[1765552560214,0.01088068,91906.0,91903.0,0.03758669]
[1765552560668,0.01087985,91913.0,91906.0,0.01088068]
[1765552560876,0.2175947,91914.0,91906.0,0.00161287]
[1765552561080,0.01088032,91909.0,91906.0,0.00161287]
[1765552561302,0.01088032,91909.0,91903.0,0.03758669]
[1765552561303,0.21761838,91904.0,91903.0,0.00011669]
[1765552561546,0.55151838,91904.0,91903.0,0.00011669]
[1765552561773,0.60153677,91904.0,91903.0,0.00011669]
[1765552561976,0.50831838,91904.0,91903.0,0.00011669]
[1765552562177,0.0217636,91909.0,91906.0,0.01088068]
[1765552562178,0.01088328,91909.0,91906.0,0.01088068]
[1765552562439,0.01088328,91909.0,91903.0,0.13316059]
[1765552562440,0.01088328,91909.0,91903.0,0.00011669]
[1765552562441,0.05079839,91904.0,91903.0,0.00011669]
[1765552562650,0.09399839,91904.0,91903.0,0.00011669]
[1765552562857,0.09399839,91904.0,91847.0,0.03747]
[1765552562858,0.50838944,91874.0,91854.0,0.01088684]
[1765552563086,0.50838944,91874.0,91849.0,0.01088743]
[1765552563087,0.55158944,91874.0,91873.0,0.01038852]
[1765552564262,0.55458944,91874.0,91873.0,0.01038852]
[1765552564461,0.60527783,91874.0,91873.0,0.01038852]
[1765552564666,0.60227783,91874.0,91873.0,0.01038852]
[1765552565095,0.60527783,91874.0,91873.0,0.01038852]
[1765552565434,1.60327783,91874.0,91873.0,0.01038852]
[1765552565644,0.96897783,91874.0,91873.0,0.01038852]
[1765552565858,0.96897783,91874.0,91833.0,0.03747]
[1765552565859,0.96897783,91874.0,91815.0,0.03747]
[1765552565860,0.01088968,91830.0,91815.0,0.03747]
[1765552566080,0.01089016,91826.0,91815.0,0.03908287]
[1765552566314,0.01089016,91826.0,91815.0,0.00161287]
[1765552566315,0.01089075,91821.0,91815.0,0.00161287]
[1765552566752,0.01089028,91825.0,91817.0,0.01089122]
[1765552566953,0.01089028,91825.0,91816.0,0.07104]
[1765552566954,0.01089099,91819.0,91816.0,0.07104]
[1765552567155,0.01089099,91819.0,91815.0,0.00161287]
[1765552567156,0.01089111,91818.0,91815.0,0.00161287]
[1765552567371,0.0432,91822.0,91817.0,0.01089122]
[1765552567590,0.00099999,91870.0,91807.0,0.2553163]
[1765552567591,0.00067,91868.0,91827.0,0.01089004]
[1765552567802,0.01088648,91857.0,91851.0,0.01088719]
[1765552568046,0.01088506,91869.0,91857.0,0.01088648]
[1765552568254,0.22858306,91871.0,91863.0,0.03747]
[1765552568464,0.01088542,91866.0,91863.0,0.11012287]
[1765552568670,0.01088542,91866.0,91850.0,0.07104]
[1765552568671,0.01088624,91859.0,91850.0,0.07104]
[1765552568897,0.01088613,91860.0,91855.0,0.01088672]
[1765552569104,0.01088613,91860.0,91851.0,0.01100332]
[1765552569105,0.01088648,91857.0,91851.0,0.00011613]
[1765552569342,0.01088684,91854.0,91851.0,0.00011613]
[1765552569555,0.22862485,91854.0,91851.0,0.00011613]
[1765552569759,0.0432,91852.0,91851.0,0.00011613]
[1765552569970,0.22862485,91854.0,91851.0,0.00011613]
[1765552570221,0.0432,91852.0,91851.0,0.00011613]
[1765552570438,0.55164158,91852.0,91851.0,0.00011613]
[1765552570673,0.55164158,91852.0,91851.0,0.00111613]
[1765552571533,0.55564158,91852.0,91851.0,0.00111613]
[1765552571739,0.55164158,91852.0,91851.0,0.00011613]
[1765552571975,0.55269158,91852.0,91851.0,0.00267404]
[1765552572219,0.55869158,91852.0,91851.0,0.00267404]
[1765552572433,0.01089111,91818.0,91812.0,0.01089182]
[1765552572646,0.00011636,91818.0,91814.0,0.01089158]
[1765552572853,0.00011636,91818.0,91812.0,0.00161287]
[1765552572854,0.01089146,91815.0,91812.0,0.00161287]
[1765552573066,0.01089146,91815.0,91804.0,0.21785382]
[1765552573068,0.21786255,91801.0,91789.0,0.04836455]
[1765552573276,0.01089205,91810.0,91780.0,0.0002]
[1765552573277,0.00011636,91818.0,91808.0,0.21784593]
[1765552573488,0.00011636,91818.0,91809.0,0.01089217]
[1765552573693,0.00011636,91818.0,91817.0,0.00161287]
[1765552573905,0.03270993,91852.0,91817.0,0.00161287]
[1765552573906,0.0432,91851.0,91843.0,0.01088814]
[1765552574162,0.00011688,91851.0,91849.0,0.22863612]
[1765552574368,0.00011688,91851.0,91849.0,0.01088743]
[1765552574614,0.00011688,91851.0,91850.0,0.28878632]
[1765552574835,0.21769322,91873.0,91850.0,0.28878632]
[1765552574836,0.01748,91872.0,91850.0,0.29039919]
[1765552575046,0.01088506,91869.0,91863.0,0.01088577]
[1765552575255,0.02173191,91870.0,91867.0,0.0108853]
[1765552575482,0.02173191,91870.0,91866.0,0.01088542]
[1765552575688,0.01088506,91869.0,91864.0,0.01088565]
[1765552575921,0.01088506,91869.0,91863.0,0.01249864]
[1765552575922,0.01088518,91868.0,91863.0,0.00161287]
[1765552576120,0.01088506,91869.0,91863.0,0.01249864]
[1765552576326,0.01088601,91861.0,91855.0,0.01088672]
[1765552576748,0.02173191,91860.0,91855.0,0.01088672]
[1765552576949,0.01088696,91853.0,91850.0,0.004]
[1765552577089,0.01088648,91857.0,91852.0,0.01088707]
[1765552577294,0.02173191,91856.0,91854.0,0.01088684]
[1765552577516,0.03261827,91858.0,91855.0,0.002]
[1765552577914,0.03261827,91858.0,91850.0,0.00172975]
[1765552577915,0.22862767,91854.0,91850.0,0.00172975]
[1765552578209,0.22862767,91854.0,91850.0,0.00111688]
[1765552578210,0.0432,91851.0,91850.0,0.00111688]
[1765552578417,0.06493191,91851.0,91850.0,0.00011688]
[1765552578618,0.4069403,91851.0,91850.0,0.00011688]
[1765552578871,0.38520839,91851.0,91850.0,0.00011688]
[1765552579317,0.38391839,91851.0,91850.0,0.00011688]
[1765552579753,0.3339,91851.0,91850.0,0.00011688]
[1765552580000,0.05408624,91859.0,91853.0,0.01088696]
[1765552580172,0.05408624,91859.0,91850.0,0.00011688]
[1765552580173,0.2286269,91853.0,91850.0,0.00011688]
[1765552580328,0.21774395,91851.0,91850.0,0.00011688]
[1765552580535,0.22474395,91851.0,91850.0,0.00011688]
[1765552581091,0.21774395,91851.0,91850.0,0.00011688]
[1765552581830,0.0108866,91856.0,91850.0,0.22874924]
[1765552582002,0.01088696,91853.0,91850.0,0.07047688]
[1765552582582,0.01088624,91859.0,91850.0,0.07347688]
[1765552582888,0.21774158,91852.0,91850.0,0.00011688]
[1765552583166,0.02173191,91851.0,91850.0,0.00011688]
[1765552583411,0.02173191,91851.0,91850.0,0.00111688]
[1765552583641,0.02173191,91851.0,91850.0,0.00211688]
[1765552583642,0.37311191,91851.0,91850.0,0.00211688]
[1765552583854,0.35267,91851.0,91850.0,0.00111688]
[1765552584467,0.35138,91851.0,91850.0,0.00111688]
[1765552584799,0.30818,91851.0,91850.0,0.00111688]
[1765552584998,0.35238,91851.0,91850.0,0.00111688]
[1765552585414,0.35238,91851.0,91850.0,0.00011688]
[1765552585630,0.35238,91851.0,91843.0,0.00023267]
[1765552585631,0.21776055,91844.0,91843.0,0.00023267]
[1765552585838,0.60296894,91844.0,91843.0,0.00023267]
[1765552586038,0.5905369,91844.0,91843.0,0.00023267]
[1765552586238,0.50846055,91844.0,91843.0,0.00023267]
[1765552586493,0.55166055,91844.0,91843.0,0.00023267]
[1765552586699,0.55424055,91844.0,91843.0,0.00023267]
[1765552586855,0.68701349,91844.0,91843.0,0.00023267]
[1765552587020,0.71011069,91844.0,91843.0,0.00023267]
[1765552587225,0.71311069,91844.0,91843.0,0.00023267]
[1765552587419,0.71411069,91844.0,91843.0,0.00023267]
[1765552587622,0.71411069,91844.0,91807.0,0.01089241]
[1765552587623,0.71411069,91844.0,91799.0,0.03694]
[1765552587624,0.01089194,91811.0,91799.0,0.03694]
[1765552587830,0.01089194,91811.0,91801.0,0.01671798]
[1765552587831,0.26106017,91802.0,91801.0,0.01671798]
[1765552588251,0.21786017,91802.0,91801.0,0.01671798]
[1765552588475,0.22874986,91804.0,91801.0,0.01671798]
[1765552588476,0.0432,91803.0,91801.0,0.01671798]
[1765552588653,0.21786017,91802.0,91801.0,0.01671798]
[1765552588874,0.26106017,91802.0,91801.0,0.01671798]
[1765552589088,0.27854017,91802.0,91801.0,0.01671798]
[1765552589618,0.23534017,91802.0,91801.0,0.01671798]
[1765552590017,0.23534017,91802.0,91801.0,0.01871798]
[1765552590189,0.01748,91802.0,91801.0,0.01871798]
[1765552590513,0.06,91803.0,91801.0,0.01871798]
[1765552590514,0.06,91803.0,91801.0,0.3895025]
[1765552590722,0.06,91803.0,91802.0,0.11798287]
[1765552590923,0.06,91803.0,91802.0,0.00161287]
[1765552591118,0.06,91803.0,91801.0,0.01971798]
[1765552591355,0.26364017,91802.0,91801.0,0.00138816]
[1765552591558,0.60435856,91802.0,91801.0,0.00138816]
[1765552591765,0.71000847,91802.0,91801.0,0.00138816]
[1765552591973,0.6275102,91802.0,91801.0,0.00138816]
[1765552592380,0.3339,91801.0,91800.0,0.008025]
[1765552592584,0.360021,91801.0,91800.0,0.008025]
[1765552592995,0.21790765,91782.0,91775.0,0.001]
[1765552593208,0.27858765,91782.0,91775.0,0.001]
[1765552593408,0.23538765,91782.0,91775.0,0.001]
[1765552593620,0.01748,91782.0,91781.0,0.00885452]
[1765552593859,0.0432,91794.0,91782.0,0.01089538]
[1765552593860,0.21788153,91793.0,91782.0,0.01089538]
[1765552594047,0.01089431,91791.0,91786.0,0.0108949]
[1765552594225,0.01089443,91790.0,91786.0,0.0108949]
[1765552594434,0.01089443,91790.0,91785.0,0.01089502]
[1765552594435,0.01089467,91788.0,91785.0,0.01089502]
[1765552594699,0.22878169,91791.0,91787.0,0.05690478]
[1765552594700,0.22878059,91791.0,91787.0,0.05690478]
[1765552594932,0.22878308,91790.0,91787.0,0.00161287]
[1765552595153,0.22878405,91790.0,91787.0,0.00161287]
[1765552595592,0.01748,91797.0,91787.0,0.00161287]
[1765552595593,0.0283736,91797.0,91793.0,0.01089407]
[1765552595798,0.01748,91797.0,91796.0,0.04601]
[1765552596012,0.00038936,91801.0,91799.0,0.21786729]
[1765552596200,0.00038936,91801.0,91800.0,0.04601]
[1765552596546,0.00038936,91801.0,91795.0,0.01089383]
[1765552596547,0.01089336,91799.0,91792.0,0.01089419]
[1765552596750,0.21825276,91801.0,91797.0,0.0108936]
[1765552596751,0.01128248,91801.0,91797.0,0.0108936]
[1765552596960,0.01089336,91799.0,91794.0,0.01250682]
[1765552597161,0.22876664,91797.0,91794.0,0.00161287]
[1765552597388,0.01089336,91799.0,91795.0,0.01089383]
[1765552597627,0.01128248,91801.0,91797.0,0.0108936]
[1765552597826,0.0108936,91797.0,91794.0,0.00661287]
[1765552598033,0.33519,91795.0,91794.0,0.005]
[1765552598207,0.33519,91795.0,91780.0,0.0002]
[1765552598208,0.21790765,91782.0,91780.0,0.0002]
[1765552598407,0.27858765,91782.0,91780.0,0.0002]
[1765552598607,0.27858765,91782.0,91781.0,0.00904612]
[1765552598894,0.23538765,91782.0,91781.0,0.00904612]
[1765552599131,0.01748,91782.0,91781.0,0.00904612]
[1765552599971,0.21790765,91782.0,91781.0,0.00904612]
[1765552600120,0.23538765,91782.0,91781.0,0.00904612]
[1765552600325,0.23538765,91782.0,91781.0,0.01004612]
[1765552600495,0.23538765,91782.0,91781.0,0.00904612]
[1765552600715,0.27858765,91782.0,91781.0,0.00904612]
[1765552600925,0.27858765,91782.0,91781.0,0.01004612]
[1765552601156,0.27858765,91782.0,91781.0,0.00904612]
[1765552601589,0.27858765,91782.0,91781.0,0.01104612]
[1765552601796,0.57057765,91782.0,91781.0,0.01104612]
[1765552601970,0.57186765,91782.0,91781.0,0.01104612]
[1765552602455,0.56928765,91782.0,91781.0,0.01104612]
[1765552602784,0.52608765,91782.0,91781.0,0.00904612]
[1765552603333,0.52608765,91782.0,91781.0,0.01004612]
[1765552603542,0.01748,91782.0,91781.0,0.01004612]
[1765552603746,0.01089419,91792.0,91786.0,0.21789815]
[1765552603882,0.0432,91800.0,91786.0,0.21789815]
[1765552603883,0.01748,91790.0,91787.0,0.01089478]
[1765552604083,0.01748,91790.0,91788.0,0.2178934]
[1765552604294,0.2178744,91797.0,91788.0,0.2178934]
[1765552604295,0.0108936,91797.0,91793.0,0.01089407]
[1765552604530,0.01748,91798.0,91796.0,0.04601]
[1765552604737,0.01748,91798.0,91796.0,0.04762287]